bitfinex-derivatives/quotes_SOLF0:USTF0_20250905
["timestamp","ask_amount","ask_price","bid_price","bid_amount"]
[1757077777112,4.3101,208.77,208.66,117.0522]
[1757077777311,4.3101,208.77,208.66,112.74]
[1757077777511,7.67,208.8,208.66,179.8208]
[1757077777714,7.67,208.85,208.7,7.89]
[1757077777908,7.67,208.85,208.72,7.89]
[1757077778914,4.3088,208.84,208.76,7.89]
[1757077779614,7.67,208.85,208.77,4.3101]
[1757077779814,4.3082,208.87,208.77,4.3101]
[1757077780208,11.9776,208.9,208.79,4.3096]
[1757077780414,7.67,208.9,208.79,4.3096]
[1757077780810,4.3078,208.89,208.79,4.3096]
[1757077781411,7.67,208.9,208.81,4.3091]
[1757077782115,4.3075,208.89,208.78,4.3097]
[1757077782515,4.3075,208.89,208.77,122.98]
[1757077782711,7.67,208.9,208.82,4.3089]
[1757077782911,7.67,208.9,208.81,7.89]
[1757077784112,67.0131,208.87,208.75,7.89]
[1757077784506,7.67,208.88,208.75,7.89]
[1757077784715,4.3086,208.84,208.76,4.3103]
[1757077784915,7.67,208.85,208.75,7.89]
[1757077785117,67.0239,208.84,208.75,7.89]
[1757077785617,67.0239,208.84,208.7,7.89]
[1757077785815,67.0239,208.84,208.7,110.79]
[1757077786218,4.3088,208.84,208.73,4.3109]
[1757077787817,4.3088,208.84,208.74,4.3105]
[1757077788115,4.3088,208.84,208.74,12.2005]
[1757077788313,7.67,208.85,208.77,4.3099]
[1757077789220,7.67,208.85,208.78,4.3098]
[1757077789519,4.3082,208.87,208.76,7.89]
[1757077789922,4.3084,208.86,208.77,4.3101]
[1757077790116,74.9686,208.86,208.72,7.89]
[1757077790313,7.95,208.83,208.72,7.89]
[1757077790621,4.3099,208.79,208.72,7.89]
[1757077790825,7.95,208.83,208.72,7.89]
[1757077791217,7.95,208.83,208.75,4.3103]
[1757077791818,7.95,208.83,208.77,4.3101]
[1757077792822,4.3091,208.82,208.75,4.3104]
[1757077793023,4.3091,208.82,208.72,7.89]
[1757077793824,7.95,208.83,208.74,7.89]
[1757077794123,7.95,208.88,208.76,7.89]
[1757077795322,4.3081,208.87,208.8,4.3093]
[1757077795723,7.95,208.88,208.8,4.3093]
[1757077795919,4.3077,208.89,208.78,67.0432]
[1757077796126,4.3077,208.89,208.79,7.89]
[1757077796325,4.3077,208.89,208.79,133.89]
[1757077796720,4.3077,208.89,208.79,7.89]
[1757077796927,12.2577,208.89,208.82,4.3089]
[1757077797526,7.95,208.89,208.83,4.3087]
[1757077799129,4.3069,208.93,208.84,12.1984]
[1757077799325,7.95,208.95,208.84,12.1984]
[1757077799525,74.9381,208.95,208.84,12.1984]
[1757077800023,4.3073,208.91,208.84,7.89]
[1757077800230,7.95,208.95,208.84,7.89]
[1757077800428,4.307,208.93,208.86,4.3083]
[1757077800630,126.53622769,208.96,208.84,7.89]
[1757077800631,5.32673472,208.97,208.84,7.89]
[1757077801024,5.32673472,208.97,208.84,133.83]
[1757077801430,4.3066,208.95,208.87,4.3079]
[1757077801629,5.32673472,208.97,208.84,133.83]
[1757077802035,5.32673472,208.97,208.88,7.89]
[1757077802631,5.32673472,208.97,208.91,7.89]
[1757077803131,5.32673472,208.97,208.86,7.89]
[1757077803338,7.95,208.98,208.86,7.89]
[1757077803735,7.95,208.93,208.82,7.89]
[1757077804136,7.95,208.98,208.84,7.89]
[1757077804637,66.9742,209.0,208.84,7.89]
[1757077804827,4.3064,208.96,208.84,87.7785]
[1757077805028,7.95,208.99,208.84,83.47]
[1757077805538,4.3066,208.95,208.86,4.3081]
[1757077805839,7.95,208.99,208.84,83.47]
[1757077806137,4.306,208.98,208.85,4.3083]
[1757077806333,7.95,208.99,208.85,4.3083]
[1757077806541,7.95,208.99,208.84,83.47]
[1757077806930,7.95,208.99,208.85,7.89]
[1757077807134,7.95,208.99,208.86,7.89]
[1757077807634,12.2558,208.99,208.87,67.0135]
[1757077807834,7.95,208.99,208.88,7.89]
[1757077808542,4.306,208.98,208.9,4.3073]
[1757077809436,7.95,208.99,208.88,7.89]
[1757077811337,7.95,208.95,208.83,7.89]
[1757077811732,4.3071,208.92,208.83,7.89]
[1757077811937,79.24781945,209.07,208.86,7.89]
[1757077812137,7.95,209.01,208.86,7.89]
[1757077812342,4.3064,208.95,208.86,7.89]
[1757077813840,7.95,209.01,208.87,7.89]
[1757077814339,4.3063,208.96,208.89,4.3076]
[1757077814741,4.3063,208.96,208.87,7.89]
[1757077815045,4.3065,208.95,208.88,4.3078]
[1757077815950,4.3068,208.94,208.87,7.89]
[1757077816148,7.95,208.97,208.87,7.89]
[1757077816349,7.95,208.95,208.83,48.7]
[1757077816851,4.3076,208.9,208.83,48.7]
[1757077817151,7.95,208.95,208.83,48.7]
[1757077817551,4.3071,208.92,208.85,4.3084]
[1757077817751,7.95,208.95,208.83,48.7]
[1757077817752,7.95,208.95,208.84,7.89]
[1757077818048,74.9219,209.01,208.84,7.89]
[1757077818251,4.3063,208.96,208.89,4.3075]
[1757077819253,7.56,208.97,208.88,7.36]
[1757077819545,7.56,208.97,208.83,7.36]
[1757077819752,4.3073,208.91,208.85,4.3085]
[1757077820752,4.3068,208.93,208.85,4.3085]
[1757077821053,7.56,208.97,208.86,11.6681]
[1757077821253,4.3067,208.94,208.86,11.6681]
[1757077821547,7.56,208.97,208.87,4.3079]
[1757077821748,7.56,208.97,208.86,7.36]
[1757077822343,7.56,208.97,208.9,4.3073]
[1757077822546,7.56,208.97,208.86,7.36]
[1757077822747,7.56,208.97,208.86,91.22]
[1757077822948,7.56,208.97,208.9,4.3073]
[1757077823244,7.56,208.97,208.86,91.22]
[1757077823647,7.56,208.97,208.86,7.36]
[1757077823847,4.3071,208.92,208.86,7.36]
[1757077824556,7.56,208.97,208.86,7.36]
[1757077825052,7.56,208.97,208.88,4.3077]
[1757077825253,7.56,208.97,208.86,7.36]
[1757077826252,7.56,208.97,208.9,4.3073]
[1757077826455,7.56,208.97,208.86,7.36]
[1757077826853,4.3067,208.94,208.86,11.6681]
[1757077827053,4.3067,208.94,208.86,7.36]
[1757077827260,4.3069,208.93,208.86,7.36]
[1757077827759,74.5527,208.94,208.84,4.01558779]
[1757077827954,7.56,208.9,208.84,4.01558779]
[1757077828356,4.3082,208.87,208.84,4.01558779]
[1757077828557,7.56,208.85,208.84,4.01558779]
[1757077828863,4.3078,208.89,208.84,4.01558779]
[1757077829060,7.56,208.91,208.84,4.01558779]
[1757077829461,7.56,208.86,208.84,4.01558779]
[1757077829656,67.0057,208.9,208.82,4.01558779]
[1757077829861,7.56,208.89,208.82,4.01558779]
[1757077830055,7.56,208.86,208.82,4.01558779]
[1757077830259,7.56,208.91,208.82,4.01558779]
[1757077830458,4.308,208.88,208.82,4.01558779]
[1757077830663,7.56,208.89,208.82,4.01558779]
[1757077831163,11.8686,208.85,208.82,4.01558779]
[1757077831666,67.0152,208.87,208.82,4.01558779]
[1757077831865,7.56,208.86,208.82,4.01558779]
[1757077832166,7.56,208.88,208.82,4.01558779]
[1757077833864,4.3081,208.87,208.82,4.01558779]
[1757077834064,11.8681,208.87,208.82,4.01558779]
[1757077834374,7.56,208.91,208.8,7.36]
[1757077835170,4.3082,208.87,208.8,11.6693]
[1757077835572,7.56,208.91,208.8,7.36]
[1757077835771,4.3077,208.89,208.81,4.3091]
[1757077835973,12.88673472,208.96,208.81,7.36]
[1757077836166,66.9894,208.95,208.81,7.36]
[1757077836365,12.88673472,208.96,208.81,7.36]
[1757077836366,12.88673472,208.96,208.84,4.3085]
[1757077836567,12.88673472,208.96,208.83,7.36]
[1757077837267,66.9896,208.95,208.83,7.36]
[1757077837570,7.56,208.93,208.83,7.36]
[1757077837772,7.56,208.93,208.83,11.6687]
[1757077838466,7.56,208.93,208.83,7.36]
[1757077839067,4.3074,208.9,208.83,11.6688]
[1757077839275,7.56,208.93,208.83,7.36]
[1757077839675,7.56,208.91,208.75,7.36]
[1757077839971,7.56,208.91,208.78,7.36]
[1757077840271,4.3084,208.86,208.79,4.3095]
[1757077840572,4.3084,208.86,208.78,7.36]
[1757077840972,4.3086,208.85,208.78,7.36]
[1757077841173,7.56,208.91,208.79,7.36]
[1757077842576,4.3075,208.9,208.79,7.36]
[1757077842774,7.56,208.91,208.79,7.36]
[1757077843175,7.56,208.91,208.79,11.6695]
[1757077843474,7.56,208.91,208.79,7.36]
[1757077845275,7.56,208.91,208.82,4.3089]
[1757077846177,4.3078,208.89,208.8,4.3094]
[1757077846379,4.3078,208.89,208.79,7.36]
[1757077846775,7.56,208.91,208.79,7.36]
[1757077847276,74.5647,208.91,208.79,7.36]
[1757077847478,7.56,208.91,208.79,7.36]
[1757077847776,7.56,208.91,208.79,11.37558779]
[1757077847967,7.56,208.89,208.79,11.37558779]
[1757077849072,7.74,208.86,208.79,4.01558779]
[1757077849474,12.0484,208.86,208.79,4.01558779]
[1757077849775,7.74,208.92,208.79,4.01558779]
[1757077849979,4.308,208.88,208.79,4.01558779]
[1757077850172,67.0029,208.91,208.79,4.01558779]
[1757077850373,7.74,208.9,208.79,4.01558779]
[1757077851080,7.74,208.89,208.79,4.01558779]
[1757077851477,67.0124,208.88,208.79,4.01558779]
[1757077851677,7.74,208.83,208.79,4.01558779]
[1757077852281,7.74,208.82,208.79,4.01558779]
[1757077853481,7.74,208.86,208.79,4.01558779]
[1757077854378,12.0484,208.86,208.8,4.3094]
[1757077855177,7.74,208.91,208.79,74.9605]
[1757077855383,7.74,208.91,208.8,7.92]
[1757077855882,74.743,208.91,208.8,7.92]
[1757077856378,4.3084,208.86,208.78,4.3098]
[1757077856772,4.3084,208.86,208.76,137.37558779]
[1757077856977,7.74,208.87,208.76,11.93558779]
[1757077857179,4.3086,208.85,208.79,4.3096]
[1757077858182,7.74,208.83,208.77,4.31]
[1757077858682,7.74,208.83,208.78,4.3098]
[1757077858876,7.74,208.83,208.78,12.2298]
[1757077859782,4.3085,208.85,208.79,7.92]
[1757077859983,4.3081,208.87,208.79,7.92]
[1757077860184,7.74,208.89,208.79,7.92]
[1757077860481,7.74,208.89,208.82,4.3089]
[1757077860681,12.0478,208.89,208.82,4.3089]
[1757077860984,7.74,208.89,208.79,7.92]
[1757077861483,7.74,208.89,208.8,7.92]
[1757077862383,7.74,208.89,208.8,133.3]
[1757077864780,5.32673472,208.95,208.8,133.3]
[1757077864781,7.74,208.94,208.82,7.92]
[1757077865377,5.32673472,208.95,208.85,7.92]
[1757077865582,5.32673472,208.95,208.87,7.92]
[1757077865783,5.32673472,208.95,208.87,133.26]
[1757077866884,5.32673472,208.95,208.9,4.3073]
[1757077867086,5.32673472,208.95,208.87,125.34]
[1757077867087,5.32673472,208.95,208.91,7.92]
[1757077867485,5.32673472,208.95,208.91,12.2271]
[1757077867686,13.06673472,208.99,208.91,12.2271]
[1757077868580,13.06673472,208.99,208.92,4.3069]
[1757077868780,13.06673472,208.99,208.91,7.92]
[1757077869481,5.32673472,208.99,208.91,7.92]
[1757077869688,5.32673472,208.99,208.93,7.92]
[1757077869880,5.32673472,208.99,208.94,125.28]
[1757077870086,5.32673472,208.99,208.95,7.92]
[1757077870387,5.32673472,208.99,208.94,4.3066]
[1757077870582,5.32673472,208.99,208.96,7.92]
[1757077870977,5.32673472,208.99,208.97,7.92]
[1757077871181,5.32673472,208.99,208.93,7.92]
[1757077871377,5.32673472,208.99,208.94,125.26]
[1757077871583,5.32673472,208.99,208.95,7.92]
[1757077871782,5.32673472,208.99,208.97,7.92]
[1757077872489,7.74,209.04,208.97,7.92]
[1757077872786,7.74,209.04,208.97,133.16]
[1757077872987,7.74,209.04,208.97,7.92]
[1757077873290,7.74,209.04,208.97,133.16]
[1757077873589,7.74,209.04,208.97,7.92]
[1757077873779,7.74,209.04,208.94,4.3066]
[1757077873986,7.74,209.04,208.92,7.92]
[1757077874389,7.74,209.04,208.93,58.24]
[1757077874587,7.74,209.04,208.92,7.92]
[1757077874783,7.74,209.02,208.9,4.01558779]
[1757077874984,7.74,209.02,208.93,58.22]
[1757077875289,7.74,209.02,208.9,4.01558779]
[1757077875490,1.76831922,209.0,208.91,41.00831922]
[1757077875683,1.76831922,209.0,208.91,1.76831922]
[1757077875884,4.3057,208.99,208.91,6.07541922]
[1757077876080,4.3057,208.99,208.91,4.3071]
[1757077876384,9.50831922,208.98,208.9,4.01558779]
[1757077876684,9.50831922,208.98,208.9,94.65558779]
[1757077876885,9.50831922,208.98,208.91,4.3071]
[1757077877079,1.76831922,209.0,208.92,9.68831922]
[1757077877479,1.76831922,209.0,208.92,133.08]
[1757077877690,7.74,208.96,208.9,6.07571922]
[1757077877989,1.76831922,208.98,208.9,131.23571922]
[1757077878290,6.07421922,208.98,208.9,6.07571922]
[1757077878589,7.55,208.97,208.88,13.99611922]
[1757077878790,1.76831922,208.96,208.88,12.2278]
[1757077879090,6.07471922,208.96,208.88,117.9678]
[1757077879692,1.76831922,208.96,208.89,4.3075]
[1757077879890,7.55,208.97,208.88,115.42831922]
[1757077880189,9.31831922,208.97,208.88,115.42831922]
[1757077880390,7.55,208.97,208.88,115.42831922]
[1757077880592,9.31831922,208.97,208.88,115.42831922]
[1757077880890,9.31831922,208.97,208.9,4.3073]
[1757077881192,1.76831922,208.99,208.91,7.91]
[1757077881392,1.76831922,209.01,208.92,1.76831922]
[1757077881795,1.76831922,209.03,208.95,1.76831922]
[1757077882086,6.07291922,209.04,208.96,7.91]
[1757077882389,1.76831922,209.04,208.96,13.98431922]
[1757077882691,7.55,209.06,208.98,6.07411922]
[1757077882892,7.55,209.06,208.98,1.76831922]
[1757077883286,7.55,209.06,209.0,1.76831922]
[1757077883488,7.55,209.06,208.96,7.91]
[1757077883681,1.76831922,209.08,209.0,9.67831922]
[1757077883882,9.31831922,209.1,209.0,9.67831922]
[1757077884283,13.62181922,209.1,209.01,4.305]
[1757077885193,4.3037,209.09,209.0,9.67831922]
[1757077885399,1.76831922,209.08,209.0,7.91]
[1757077885787,4.3043,209.06,208.98,4.3058]
[1757077885987,1.76831922,209.06,208.98,4.3058]
[1757077886291,1.76831922,209.04,208.96,9.67831922]
[1757077886493,9.31831922,209.04,208.96,134.73831922]
[1757077886992,9.31831922,209.04,208.96,9.67831922]
[1757077887791,9.31831922,209.04,208.96,13.98451922]
[1757077888193,9.31831922,209.04,208.96,9.67831922]
[1757077888493,9.31831922,209.04,208.98,4.3057]
[1757077888793,7.55,209.04,208.98,4.3057]
[1757077889390,7.55,209.04,208.99,4.3054]
[1757077889594,1.76831922,209.07,208.99,4.3054]
[1757077890197,6.07241922,209.07,208.99,4.3054]
[1757077890394,6.07241922,209.07,208.98,9.67831922]
[1757077890600,7.55,209.08,209.0,1.76831922]
[1757077891295,9.31831922,209.08,209.0,4.3053]
[1757077891492,9.31831922,209.08,208.99,1.76831922]
[1757077891693,4.3041,209.07,208.99,1.76831922]
[1757077891894,4.3041,209.07,209.0,4.3053]
[1757077892397,9.31831922,209.08,208.99,1.76831922]
[1757077894299,4.3045,209.05,208.99,1.76831922]
[1757077894999,4.3039,209.07,208.99,1.76831922]
[1757077895202,7.55,209.08,209.01,1.76831922]
[1757077896503,9.31831922,209.08,208.99,126.68831922]
[1757077896804,4.3045,209.05,208.99,6.07381922]
[1757077897097,11.8545,209.05,208.99,6.07381922]
[1757077898802,1.76831922,209.08,209.01,1.76831922]
[1757077899005,7.55,209.09,209.01,1.76831922]
[1757077899309,1.76831922,209.12,209.03,1.76831922]
[1757077900616,11.8535,209.1,209.03,6.07291922]
[1757077900905,7.55,209.1,209.03,6.07291922]
[1757077901710,7.55,209.1,209.04,4.3044]
[1757077902117,4.3027,209.13,209.05,1.76831922]
[1757077902509,9.31831922,209.14,209.06,4.304]
[1757077902714,7.55,209.14,209.06,4.304]
[1757077902910,9.31831922,209.14,209.06,12.214]
[1757077903116,9.31831922,209.14,209.06,7.91]
[1757077903420,11.8533,209.11,209.06,7.91]
[1757077903920,7.55,209.1,209.03,1.76831922]
[1757077904321,4.3039,209.07,209.01,13.98331922]
[1757077905419,4.3039,209.07,209.01,9.67831922]
[1757077905720,7.55,209.05,208.99,6.07381922]
[1757077906022,13.62181922,209.09,209.0,12.2151]
[1757077906229,13.62181922,209.09,209.01,1.76831922]
[1757077906519,7.55,209.09,209.01,1.76831922]
[1757077906717,1.76831922,209.12,209.03,1.76831922]
[1757077906916,7.55,209.11,209.03,1.76831922]
[1757077907423,11.8537,209.08,209.03,9.67831922]
[1757077907819,7.55,209.12,209.03,13.98281922]
[1757077908014,7.55,209.12,209.03,7.91]
[1757077908220,7.55,209.12,209.03,9.67831922]
[1757077908415,7.55,209.12,209.03,7.91]
[1757077908620,7.55,209.12,209.05,1.76831922]
[1757077909719,7.55,209.12,209.05,6.07251922]
[1757077910325,4.3032,209.11,209.05,1.76831922]
[1757077910721,9.31831922,209.12,209.03,9.67831922]
[1757077911727,7.58,209.09,209.01,1.76831922]
[1757077912827,7.58,209.09,209.03,1.76831922]
[1757077913023,4.303,209.12,209.04,4.3044]
[1757077913324,4.303,209.12,209.05,1.76831922]
[1757077914222,11.8833,209.1,209.05,1.76831922]
[1757077914421,7.58,209.1,209.06,7.87]
[1757077915623,4.3033,209.11,209.05,6.07251922]
[1757077915822,4.3033,209.11,209.05,4.3042]
[1757077916023,4.3033,209.11,209.04,1.76831922]
[1757077916528,4.3033,209.11,209.04,6.07281922]
[1757077917631,4.3033,209.11,209.05,4.3042]
[1757077917829,4.3033,209.11,209.05,6.07251922]
[1757077918130,7.58,209.12,209.05,1.76831922]
[1757077918331,7.58,209.12,209.03,6.07301922]
[1757077919125,7.58,209.12,209.03,1.76831922]
[1757077919324,4.3032,209.11,209.05,1.76831922]
[1757077920328,7.58,209.12,209.07,1.76831922]
[1757077920525,7.58,209.12,209.07,9.63831922]
[1757077921032,4.3028,209.13,209.07,9.63831922]
[1757077921326,7.58,209.16,209.07,9.63831922]
[1757077921530,7.58,209.14,209.07,7.87]
[1757077921727,66.9226,209.16,209.05,1.76831922]
[1757077921728,7.58,209.12,209.05,1.76831922]
[1757077921920,4.3037,209.09,209.05,1.76831922]
[1757077922125,7.58,209.12,209.05,9.63831922]
[1757077922426,4.3035,209.1,209.05,9.63831922]
[1757077922629,11.8835,209.1,209.05,9.63831922]
[1757077922824,7.58,209.14,209.06,7.87]
[1757077923027,7.58,209.14,209.07,1.76831922]
[1757077923227,7.58,209.14,209.09,1.76831922]
[1757077923630,7.58,209.14,209.09,9.63831922]
[1757077924335,7.58,209.14,209.1,7.87]
[1757077924730,11.8824,209.15,209.08,1.76831922]
[1757077924931,7.58,209.15,209.08,1.76831922]
[1757077925138,7.58,209.15,209.05,7.87]
[1757077925429,7.58,209.15,209.06,1.76831922]
[1757077925629,7.58,209.15,209.06,6.07241922]
[1757077926232,1.76831922,209.16,209.08,1.76831922]
[1757077926433,5.32673472,209.18,209.14,7.87]
[1757077926734,5.32673472,209.18,209.17,1.76831922]
[1757077927126,5.32673472,209.18,209.13,4.3026]
[1757077927331,5.32673472,209.18,209.17,1.76831922]
[1757077927737,5.32673472,209.18,209.12,112.02]
[1757077927936,4.301,209.22,209.17,1.76831922]
[1757077928136,7.58,209.21,209.17,1.76831922]
[1757077929231,11.8804,209.25,209.17,1.76831922]
[1757077929430,7.58,209.25,209.19,1.76831922]
[1757077931133,11.881,209.22,209.17,1.76831922]
[1757077931538,7.58,209.24,209.16,1.76831922]
[1757077931834,11.8814,209.2,209.15,7.87]
[1757077932034,66.9069,209.21,209.12,1.76831922]
[1757077932244,74.4836,209.22,209.03,70.97738779]
[1757077932245,74.4965,209.18,209.08,1.76831922]
[1757077932434,4.3027,209.14,209.08,1.76831922]
[1757077932634,9.34831922,209.18,209.08,1.76831922]
[1757077932940,4.3022,209.16,209.1,1.76831922]
[1757077933340,7.58,209.18,209.12,1.76831922]
[1757077933735,7.58,209.23,209.17,1.76831922]
[1757077934133,7.58,209.23,209.19,1.76831922]
[1757077934837,11.8808,209.23,209.18,1.76831922]
[1757077935035,4.3008,209.23,209.18,1.76831922]
[1757077935241,11.8804,209.25,209.2,1.76831922]
[1757077935438,7.58,209.27,209.15,7.87]
[1757077936234,4.3002,209.26,209.17,2.75609415]
[1757077936436,8.08282887,209.33,209.18,7.87]
[1757077936643,5.32673472,209.33,209.23,2.75609415]
[1757077936840,5.32673472,209.33,209.26,4.2999]
[1757077937038,5.32673472,209.33,209.26,2.75609415]
[1757077937241,5.32673472,209.33,209.28,7.87]
[1757077937441,5.32673472,209.33,209.3,7.87]
[1757077937743,5.32673472,209.33,209.27,7.87]
[1757077938138,5.32673472,209.33,209.27,12.1697]
[1757077938439,5.32673472,209.33,209.28,124.3]
[1757077938634,5.32673472,209.37,209.29,7.88]
[1757077938834,9.62453472,209.37,209.29,7.88]
[1757077939240,4.2982,209.36,209.29,7.88]
[1757077939437,4.2982,209.36,209.25,12.1801]
[1757077939644,4.2982,209.36,209.26,124.28]
[1757077939842,4.2982,209.36,209.25,7.88]
[1757077940147,4.2982,209.36,209.27,4.2998]
[1757077940340,4.2982,209.36,209.26,115.78]
[1757077940536,4.2984,209.35,209.25,7.88]
[1757077940741,7.64,209.36,209.25,7.88]
[1757077940941,7.64,209.36,209.25,99.12]
[1757077941142,7.64,209.36,209.25,132.14]
[1757077941442,7.64,209.36,209.25,7.88]
[1757077941642,11.9382,209.36,209.25,7.88]
[1757077941946,7.64,209.36,209.25,7.88]
[1757077942337,7.64,209.36,209.25,12.1802]
[1757077942748,7.64,209.36,209.25,7.88]
[1757077943749,5.32673472,209.37,209.3,4.2992]
[1757077943949,5.32673472,209.37,209.3,12.1992]
[1757077944350,5.32673472,209.37,209.32,4.2987]
[1757077944548,5.32673472,209.37,209.32,12.1987]
[1757077944751,5.32673472,209.37,209.32,4.2987]
[1757077944950,5.32673472,209.37,209.33,7.9]
[1757077945452,5.32673472,209.37,209.32,191.0505]
[1757077945642,5.32673472,209.37,209.35,4.298]
[1757077945847,5.32673472,209.37,209.36,7.9]
[1757077947048,7.64,209.41,209.3,7.9]
[1757077947250,7.64,209.41,209.35,124.16]
[1757077948649,11.937,209.41,209.34,7.9]
[1757077949152,4.298,209.36,209.32,46.08]
[1757077949352,7.64,209.35,209.26,4.3]
[1757077949748,4.2989,209.32,209.28,0.03642287]
[1757077949948,11.9389,209.32,209.28,0.03642287]
[1757077950349,7.64,209.32,209.28,0.03642287]
[1757077950847,11.97152273,209.36,209.28,0.03642287]
[1757077951356,0.03332273,209.36,209.29,7.9]
[1757077951944,0.03332273,209.36,209.34,4.2982]
[1757077952455,0.03332273,209.36,209.35,7.9]
[1757077954057,0.03332273,209.36,209.35,131.96]
[1757077955053,0.03332273,209.36,209.35,131.94]
[1757077955354,0.03332273,209.36,209.35,7.9]
[1757077955560,0.03332273,209.36,209.35,131.94]
[1757077957459,0.03332273,209.36,209.33,124.03137965]
[1757077957758,7.64,209.35,209.33,0.03137965]
[1757077957955,0.03332273,209.36,209.33,0.03137965]
[1757077958164,4.2982,209.35,209.33,0.03137965]
[1757077958357,7.64,209.34,209.33,0.03137965]
[1757077958554,66.8693,209.33,209.22,7.9]
[1757077958759,4.2998,209.28,209.23,123.98]
[1757077958960,7.64,209.28,209.23,123.98]
[1757077959266,7.64,209.38,209.24,7.93]
[1757077959464,4.2984,209.34,209.27,4.2996]
[1757077959659,7.64,209.35,209.24,7.93]
[1757077959853,0.03172607,209.33,209.25,123.98]
[1757077960262,0.03172607,209.33,209.24,7.93]
[1757077960456,0.03172607,209.33,209.25,87.16]
[1757077960661,7.64,209.32,209.23,123.96]
[1757077960861,4.2996,209.29,209.23,123.96]
[1757077961059,7.64,209.32,209.23,123.96]
[1757077961259,7.64,209.28,209.21,127.97558779]
[1757077961464,7.64,209.28,209.21,4.01558779]
[1757077962370,7.64,209.28,209.17,123.96]
[1757077962567,4.3004,209.25,209.17,123.96]
[1757077962969,0.03559633,209.23,209.17,123.96]
[1757077963567,0.03559633,209.23,209.16,123.96]
[1757077963969,7.64,209.22,209.16,123.96]
[1757077964271,7.64,209.22,209.13,4.01558779]
[1757077967470,7.64,209.22,209.13,8.31828779]
[1757077967674,7.64,209.22,209.13,4.3027]
[1757077967874,0.03559633,209.23,209.13,66.9309]
[1757077968075,0.03559633,209.23,209.16,4.3021]
[1757077968481,8.11,209.22,209.12,7.93]
[1757077968773,0.03559633,209.23,209.18,66.9133]
[1757077968974,0.03559633,209.23,209.2,7.46]
[1757077969279,8.11,209.34,209.21,4.301]
[1757077969579,0.03648174,209.24,209.21,7.46]
[1757077969773,8.11,209.31,209.23,4.3007]
[1757077970076,0.0359196,209.25,209.23,4.3007]
[1757077971074,0.0359196,209.25,209.24,7.46]
[1757077971677,0.0359196,209.25,209.23,4.3007]
[1757077972176,0.0359196,209.25,209.24,7.46]
[1757077972375,0.0359196,209.25,209.22,131.38]
[1757077972778,0.0359196,209.25,209.23,7.46]
[1757077972984,0.0359196,209.25,209.24,4.3005]
[1757077973582,0.0359196,209.25,209.22,123.92]
[1757077973882,0.0359196,209.25,209.22,123.9]
[1757077974581,0.0359196,209.25,209.21,128.201]
[1757077974881,0.0359196,209.25,209.22,7.46]
[1757077975288,0.0359196,209.25,209.21,123.93084003]
[1757077975782,0.0359196,209.25,209.22,7.46]
[1757077976077,0.0359196,209.25,209.21,123.93084003]
[1757077976680,0.0359196,209.25,209.21,0.03084003]
[1757077976982,8.1459196,209.25,209.21,0.03084003]
[1757077977177,0.0359196,209.25,209.21,0.03084003]
[1757077977387,8.11,209.24,209.21,0.03084003]
[1757077978282,0.0359196,209.25,209.21,0.03084003]
[1757077978485,8.11,209.24,209.21,0.03084003]
[1757077978674,4.3006,209.23,209.21,0.03084003]
[1757077978983,8.11,209.22,209.21,0.03084003]